[Event "Lienz Open 2007"]
[Site "?"]
[Date "2007.02.10"]
[Round "1"]
[White "Piotraschke, Lena"]
[Black "Grundner, Alois"]
[Result "0-1"]
[ECO "B01"]
[WhiteElo "1420"]
[BlackElo "1931"]
[Annotator ",Lois"]
[PlyCount "119"]
[TimeControl "300"]

{37MB, LOIS-LXIC8KMRWW} 1. e4 d5 2. exd5 Nf6 3. Nc3 Nxd5 4. Nxd5 Qxd5 5. Qf3 c6
6. Qxd5 cxd5 7. d4 Nc6 8. c3 g6 9. Nf3 Bg7 10. Bb5 O-O 11. Bxc6 bxc6 12. O-O f6
13. Re1 Re8 14. Bd2 e5 15. dxe5 fxe5 16. Bf4 e4 17. Nd4 Bd7 18. h3 Rac8 19.
Rad1 c5 20. Ne2 Bc6 21. Be3 Bb7 22. Nf4 Re5 23. Rd2 Bf8 24. Red1 Rd8 25. a3 a5
26. b3 Be7 27. g3 g5 28. Ng2 Rf5 29. a4 Rc8 30. Rb1 Bf6 31. Rc2 d4 32. cxd4
cxd4 33. Rxc8+ Bxc8 34. Bd2 Rd5 35. Rc1 Bxh3 36. Rc6 Kf7 37. Ra6 Bd8 38. Ra7+
Kg6 39. Ra6+ Kh5 40. Kh2 Bg4 41. Ra7 h6 42. Kg1 Rc5 43. b4 ({-4.25 Fritz 8:} 
43. Ne1 Bd1 44. Ra6 Bc7 45. Re6 Re5 46. Rc6 Re7 47. Nc2 Bxc2 48. Rxc2 Kg4 {
[%eval -250,11]}) 43... Rc2 44. Be1 Bf3 ({-2.69 Fritz 8:} 44... d3 {[%eval
-438,10]}) 45. bxa5 ({-3.94 Fritz 8:} 45. Rd7 Bf6 46. bxa5 Ra2 47. Rd6 Kg6 48.
Bb4 e3 49. Nxe3 Ra1+ {[%eval -269,12]}) 45... Rc1 46. a6 Ba5 47. Kf1 ({-8.00
Fritz 8:} 47. Rf7 Bxe1 48. a7 Bd2+ 49. Kh2 Rc8 50. Kg1 Kg4 51. Rc7 Ra8 {[%eval
-575,12]}) 47... Bxg2+ ({-3.59 Fritz 8:} 47... Kg4 48. Rc7 Bxc7 49. a7 e3 50.
fxe3 Rc2 51. exd4 Bxg2+ 52. Kg1 Bd5 53. Bf2 Bxg3 {[%eval -800,9]}) 48. Kxg2
Bxe1 49. Ra8 Ra1 50. Re8 Rxa4 51. Rxe4 Bc3 52. Re6 Ra2 ({-3.62 Fritz 8:} 52...
d3 {[%eval -522,11]}) 53. Kh3 ({-9.19 Fritz 8:} 53. Kf3 g4+ 54. Ke4 Re2+ 55.
Kd5 d3 56. Rd6 Ra2 57. Kc4 Be1 58. Kb5 d2 {[%eval -362,13]}) 53... g4+ 54. Kg2
d3 55. Rd6 d2 56. Rd3 Rxa6 57. f3 gxf3+ 58. Kxf3 Ra1 59. Ke2 Re1+ 60. Kf2 0-1

[Event "Lienz Open 2007"]
[Site "?"]
[Date "2007.02.11"]
[Round "3"]
[White "Wiecker, Stefan"]
[Black "Grundner, Alois"]
[Result "1-0"]
[ECO "B01"]
[WhiteElo "2080"]
[BlackElo "1931"]
[Annotator ",Lois"]
[PlyCount "42"]
[TimeControl "300"]

{37MB, LOIS-LXIC8KMRWW} 1. e4 d5 2. exd5 Nf6 3. Bb5+ Bd7 4. Bc4 b5 5. Bb3 Bg4
6. f3 Bc8 7. Qe2 a6 8. Nc3 g6 9. a3 Bg7 10. d4 O-O 11. Bf4 Bb7 12. Nh3 Nbd7 13.
O-O Nb6 14. Rfe1 Re8 15. Rad1 Nfxd5 16. Nxd5 Bxd5 17. Bxd5 Nxd5 18. Be5 e6 19.
Nf2 Qe7 20. Ng4 h5 21. Ne3 Qg5 {nach etwa weiteren 60 Zügen gewann Schwarz
einen Bauern und dann das Spiel nach etwa weiteren 60 Zügen gewann Schwarz
einen Bauern und dann das Spiel} 1-0

[Event "Lienz Open 2007"]
[Site "?"]
[Date "2007.02.14"]
[Round "6"]
[White "Grundner, Alois"]
[Black "Kawinek, Arnold"]
[Result "1/2-1/2"]
[ECO "A40"]
[WhiteElo "1931"]
[BlackElo "1563"]
[Annotator ",Lois"]
[PlyCount "28"]
[TimeControl "300"]

{37MB, TreeB33.ctg, LOIS-LXIC8KMRWW} 1. d4 {[%emt 0:00:00]} e5 2. dxe5 Nc6 3.
Nf3 Qe7 4. Bg5 Qb4+ 5. Nc3 Qxb2 6. Bd2 Bb4 7. Rb1 Qa3 8. Rb3 ({1.09 Fritz 8:} 
8. Nd5 Bxd2+ 9. Qxd2 Qxa2 10. Rd1 Kf8 11. Nxc7 Rb8 12. Qd6+ Nge7 13. Nd5 Ra8
14. Nxe7 {[%eval 181,11]}) 8... Qa5 9. a3 Bxa3 ({3.22 Fritz 8:} 9... Bxc3 10.
Bxc3 Qc5 11. Nd4 a5 12. Nxc6 dxc6 13. Bd4 Qd5 14. Qd3 {[%eval 109,11]}) 10. Nb5
({0.72 Fritz 8:} 10. Rxa3 Qc5 (10... Qxa3 {[%emt 0:00:00]} 11. Nb5 {[%eval 341,
10] [%emt 0:00:02]} Qa4 {[%emt 0:00:12]} 12. Nxc7+ {[%eval 406,10] [%emt 0:00:
06]} Kd8 {[%emt 0:00:01]} 13. Nxa8 {[%eval 425,8] [%emt 0:00:01]} Nge7 {[%emt
0:00:19]} 14. e3 {[%eval 441,10] [%emt 0:00:08]} Ng6 {[%emt 0:00:01]} 15. Bc3 {
[%eval 438,9] [%emt 0:00:07]} Re8 {[%emt 0:00:02]} 16. e6 {[%eval 444,8] [%emt
0:00:04]} fxe6 {[%emt 0:00:04]} 17. Bxg7 {[%eval 441,8] [%emt 0:00:00]}) 11.
Ra4 Nge7 12. Ne4 Qd5 13. e3 Nxe5 {[%eval 322,10]}) (10. Rb5 {[%emt 0:00:00]}
Qa6 {[%eval 278,11] [%emt 0:00:11]} 11. e4 {[%emt 0:00:20]} Be7 {[%eval 256,9]
[%emt 0:00:06]} 12. Nd5 {[%emt 0:00:04]} Bd8 {[%eval 175,10] [%emt 0:00:08]})
10... Bb4 11. Nxc7+ ({0.00 Fritz 8:} 11. e3 Nh6 12. c3 Bc5 13. c4 Bb4 14. Bxb4
Nxb4 15. Nxc7+ Qxc7 16. Rxb4 {[%eval 69,10]}) 11... Qxc7 12. Bxb4 Nxb4 13. Rxb4
Qc3+ 14. Qd2 Qa1+ 1/2-1/2

[Event "Lienz Open 2007"]
[Site "?"]
[Date "2007.02.15"]
[Round "7"]
[White "Sauper, Dorian"]
[Black "Grundner, Alois"]
[Result "1/2-1/2"]
[ECO "B02"]
[WhiteElo "1572"]
[BlackElo "1931"]
[Annotator ",Lois"]
[PlyCount "63"]
[TimeControl "300"]

{37MB, TreeB33.ctg, LOIS-LXIC8KMRWW} 1. e4 {letzter Buchzug} d5 2. exd5 Nf6 3.
Bc4 Nxd5 4. Nc3 c6 5. d4 g6 6. Nf3 Bg7 7. Nxd5 cxd5 8. Bb5+ Nc6 9. O-O O-O 10.
Be3 Bg4 11. c3 Qb6 12. Bxc6 bxc6 13. b4 Qc7 14. h3 Bxf3 15. Qxf3 f6 16. Qe2 e5
17. dxe5 fxe5 18. Bc5 Rfe8 19. Qd2 Rad8 20. Rad1 Bf8 21. Be3 a5 22. a3 Bd6 23.
f3 Rf8 24. Qf2 Rb8 25. Bc5 Rf5 26. Bxd6 Qxd6 27. Rfe1 axb4 28. axb4 Qf6 29. Qe3
Qd6 30. Rd2 Rd8 31. Red1 Ra8 32. Qb6 1/2-1/2

[Event "Lienz Open 2007"]
[Site "?"]
[Date "2007.02.17"]
[Round "9"]
[White "Bodner, Alfred"]
[Black "Grundner, Alois"]
[Result "0-1"]
[ECO "D02"]
[WhiteElo "2030"]
[BlackElo "1931"]
[Annotator ",Lois"]
[PlyCount "72"]
[TimeControl "300"]

{37MB, TreeB33.ctg, LOIS-LXIC8KMRWW} 1. Nf3 {letzter Buchzug} d5 {[%eval 3,10]}
2. d4 {[%eval 0,10]} Nf6 {[%eval 3,10]} 3. g3 {[%eval -6,10]} e6 {[%eval -25,
10]} 4. Bg2 {[%eval -6,10]} c5 {[%eval -6,10]} 5. dxc5 {[%eval 6,10]} Bxc5 {
[%eval -22,10]} 6. O-O {[%eval -6,10]} O-O {[%eval 0,10]} 7. Nbd2 {[%eval -22,
10]} Nc6 {[%eval 0,10]} 8. Nb3 {[%eval -31,10]} Bb6 {[%eval -22,10]} 9. c3 {
[%eval -28,10]} e5 {[%eval -28,10]} 10. Qc2 {[%eval -53,10]} Qe7 {[%eval -47,
10]} 11. e3 {[%eval -75,10]} h6 {[%eval -62,10]} 12. h3 {[%eval -59,10]} Be6 {
[%eval -69,10]} 13. Bd2 {[%eval -88,10]} Rac8 {[%eval -91,10]} 14. Qd1 {[%eval
-91,10]} Rfd8 {[%eval -94,10]} 15. Qe2 {[%eval -94,10]} Ne4 {[%eval -91,10]}
16. Be1 {[%eval -91,10]} f5 {[%eval -97,10]} 17. Nh2 {[%eval -141,10]} ({Fritz
8:} 17. Rd1 Qf6 18. Bd2 Qg6 19. Kh2 Rf8 20. Qd3 {[%eval -97,10]}) 17... Qg5 {
[%eval -103,10]} 18. h4 {[%eval -141,10]} ({Fritz 8:} 18. Rd1 Qg6 19. Nf3 Rf8
20. Nh4 Qf6 21. Nf3 Rcd8 22. Qd3 Qg6 23. Kh2 {[%eval -103,10]}) 18... Qg6 {
[%eval -141,10]} 19. Bf3 {[%eval -191,10]} ({Fritz 8:} 19. Rd1 Rd7 20. Nd2 Rcc7
21. Nb3 Ne7 22. h5 Qg5 23. Qf3 Rc4 {[%eval -141,10]}) 19... Nf6 {[%eval -147,
10]} 20. Kh1 {[%eval -172,10]} h5 {[%eval -116,10]} ({Fritz 8:} 20... Qf7 21.
Rg1 d4 22. cxd4 exd4 23. Nxd4 Nxd4 24. exd4 Bxd4 25. Bb4 Bxa2 {[%eval -172,10]}
) 21. Bg2 {[%eval -109,10]} Ne4 {[%eval -116,10]} 22. Nd2 {[%eval -134,10]} Qf7
{[%eval -119,10]} 23. Nhf3 {[%eval -125,10]} g6 {[%eval -66,10]} ({Fritz 8:} 
23... d4 24. exd4 exd4 25. Ng5 Nxg5 26. hxg5 dxc3 27. bxc3 Bd5 28. c4 Re8 29.
Qd3 Bxg2+ 30. Kxg2 {[%eval -125,10]}) 24. b3 {[%eval -409,10]} ({Fritz 8:} 24.
Nxe4 dxe4 25. Ng5 Qe7 26. Nxe6 Qxe6 27. f3 exf3 28. Qxf3 e4 29. Qf4 Ne5 30. Qh6
{[%eval -66,10]}) 24... Nxc3 {[%eval -441,10]} 25. Ng5 {[%eval -556,10]} Nxe2 {
[%eval -587,10]} 26. Nxf7 {[%eval -556,10]} Kxf7 {[%eval -587,10]} 27. Nf3 {
[%eval -556,10]} d4 {[%eval -537,10]} 28. Ng5+ {[%eval -528,10]} Kf6 {[%eval
-559,10]} 29. e4 {[%eval -528,10]} Ne7 {[%eval -497,10]} 30. f4 {[%eval -584,
10]} exf4 {[%eval -541,10]} 31. gxf4 {[%eval -509,10]} fxe4 {[%eval -509,10]}
32. Nxe4+ {[%eval -578,10]} Kg7 {[%eval -603,10]} 33. Ng5 {[%eval -572,10]} Bd5
{[%eval -597,10]} 34. Bxd5 {[%eval -566,10]} Rxd5 {[%eval -597,10]} 35. Rf2 {
[%eval -691,10]} d3 {[%eval -722,10]} 36. Ne6+ {[%eval -928,10]} Kf6 {[%eval
-959,10]} 0-1

[Event "Lienz Open 2007"]
[Site "?"]
[Date "2007.02.13"]
[Round "5"]
[White "Henrichsen, Jens"]
[Black "Grundner, Alois"]
[Result "1-0"]
[ECO "E18"]
[WhiteElo "2052"]
[BlackElo "1931"]
[Annotator ",Lois"]
[PlyCount "51"]
[TimeControl "300"]

{96MB, TreeB33.ctg, LOIS-LXIC8KMRWW} 1. d4 Nf6 {letzter Buchzug} 2. c4 {[%eval
12,10]} e6 {[%eval 9,10]} 3. Nf3 {[%eval 12,10]} d5 {[%eval 9,10]} 4. g3 {
[%eval -25,10]} ({Fritz 8:} 4. Nc3 dxc4 5. e4 Bb4 6. Bg5 h6 7. Bxf6 Qxf6 8.
Bxc4 Qg6 {[%eval 9,10]}) 4... Be7 {[%eval -34,10]} 5. Bg2 {[%eval -16,10]} b6 {
[%eval 31,10]} ({Fritz 8:} 5... dxc4 6. Nbd2 Qd5 7. O-O O-O 8. Qc2 Nc6 9. Qxc4
{[%eval -16,10]}) 6. O-O {[%eval 41,10]} Bb7 {[%eval 22,10]} 7. Nc3 {[%eval 28,
10]} O-O {[%eval 31,10]} 8. cxd5 {[%eval 22,10]} exd5 {[%eval 34,10]} 9. Ne5 {
[%eval 28,10]} Nbd7 {[%eval 25,10]} 10. Qa4 {[%eval 56,10]} Nxe5 {[%eval 25,10]
} 11. dxe5 {[%eval 56,10]} Ne8 {[%eval 100,10]} ({Fritz 8:} 11... Ne4 12. Nxe4
dxe4 13. Bxe4 Bxe4 14. Qxe4 Qd7 15. Bf4 Qe6 16. Rfc1 c5 17. Qf3 {[%eval 56,10]}
) 12. Rd1 {[%eval 87,10]} c6 {[%eval 56,10]} 13. e4 {[%eval 87,10]} Nc7 {
[%eval 66,10]} 14. exd5 {[%eval 69,10]} cxd5 {[%eval 75,10]} 15. Qb3 {[%eval
69,10]} Bc5 {[%eval 75,10]} 16. Nxd5 {[%eval 94,10]} Nxd5 {[%eval 63,10]} 17.
Bxd5 {[%eval 94,10]} Qe7 {[%eval 81,10]} 18. Bxb7 {[%eval 97,10]} Qxb7 {[%eval
69,10]} 19. Be3 {[%eval 78,10]} Qf3 {[%eval 122,10]} ({Fritz 8:} 19... Rac8 20.
Bxc5 Rxc5 21. f4 Rfc8 22. Rd6 R5c6 23. Rad1 Rxd6 {[%eval 78,10]}) 20. Bxc5 {
[%eval 153,10]} Qxb3 {[%eval 122,10]} 21. axb3 {[%eval 153,10]} bxc5 {[%eval
138,10]} 22. Rd7 {[%eval 128,10]} Rab8 {[%eval 166,10]} 23. Raxa7 {[%eval 187,
10]} Rxb3 {[%eval 156,10]} 24. e6 {[%eval 187,10]} Rxb2 {[%eval 534,10]} ({
Fritz 8:} 24... Rbb8 25. Rac7 g6 26. e7 Rfe8 {[%eval 187,10]}) 25. e7 {[%eval
562,10]} Re8 {[%eval 2103,10]} ({Fritz 8:} 25... Rbb8 26. exf8=Q+ Rxf8 {[%eval
562,10]}) 26. Ra8 {[%eval 2556,10]} 1-0

[Event "Lienz Open 2007"]
[Site "?"]
[Date "2007.02.12"]
[Round "4"]
[White "Grundner, Alois"]
[Black "Munz, Erich"]
[Result "1-0"]
[ECO "A40"]
[WhiteElo "1931"]
[BlackElo "1558"]
[Annotator ",Lois"]
[PlyCount "53"]
[TimeControl "300"]

{37MB, TreeB33.ctg, LOIS-LXIC8KMRWW} 1. d4 {letzter Buchzug} g6 {[%eval 63,10]}
2. c4 {[%eval 44,10]} Bg7 {[%eval 34,10]} 3. Nc3 {[%eval 31,10]} Nc6 {[%eval
28,10]} 4. Nf3 {[%eval 41,10]} f5 {[%eval 53,10]} 5. g3 {[%eval 53,10]} Nf6 {
[%eval 41,10]} 6. Bg2 {[%eval 41,10]} O-O {[%eval 47,10]} 7. O-O {[%eval 41,10]
} e6 {[%eval 72,10]} 8. Bg5 {[%eval 12,10]} ({Fritz 8:} 8. d5 Ne7 9. d6 cxd6
10. Qxd6 Nc6 11. Bf4 Ne4 12. Nxe4 fxe4 {[%eval 72,10]}) 8... Ne7 {[%eval 59,10]
} ({Fritz 8:} 8... h6 9. Be3 d6 10. h3 a6 11. d5 Ne7 12. Nd4 {[%eval 12,10]})
9. Qd2 {[%eval 31,10]} d5 {[%eval 63,10]} 10. Ne5 {[%eval 78,10]} c6 {[%eval
63,10]} 11. f3 {[%eval 25,10]} ({Fritz 8:} 11. b3 Ng4 12. f4 Nf6 13. Rad1 Qd6
14. Qe3 {[%eval 63,10]}) 11... Bd7 {[%eval 109,10]} ({Fritz 8:} 11... Nd7 12.
Nxd7 Qxd7 13. cxd5 Nxd5 14. Rad1 Rf7 15. Bh6 Bf6 {[%eval 25,10]}) 12. e4 {
[%eval 87,10]} Qa5 {[%eval 372,10]} ({Fritz 8:} 12... Bc8 13. exd5 exd5 14. c5
Nd7 15. Nxd7 Qxd7 16. Rae1 Re8 {[%eval 87,10]}) 13. Bxf6 {[%eval 372,10]} Rxf6
{[%eval 341,10]} 14. Nxd7 {[%eval 372,10]} Rf7 {[%eval 341,10]} 15. Nc5 {
[%eval 278,10]} b6 {[%eval 406,10]} ({Fritz 8:} 15... e5 16. exd5 exd4 17. N3e4
Qxd2 18. Nxd2 cxd5 {[%eval 278,10]}) 16. Nxe6 {[%eval 437,10]} dxc4 {[%eval
406,10]} 17. Nxg7 {[%eval 406,10]} Kxg7 {[%eval 381,10]} 18. d5 {[%eval 366,10]
} Qc5+ {[%eval 334,10]} 19. Kh1 {[%eval 366,10]} Rd8 {[%eval 344,10]} 20. Na4 {
[%eval 328,10]} Qb5 {[%eval 344,10]} 21. Qd4+ {[%eval 375,10]} Kg8 {[%eval 353,
10]} 22. Nc3 {[%eval 384,10]} Qb4 {[%eval 359,10]} 23. a3 {[%eval 391,10]} Qd6
{[%eval 497,10]} 24. e5 {[%eval 528,10]} Qb8 {[%eval 581,10]} 25. d6 {[%eval
612,10]} c5 {[%eval 734,10]} 26. Qxc4 {[%eval 766,10]} Nc6 {[%eval 800,10]} 27.
f4 {[%eval 762,10]} 1-0

[Event "Lienz Open 2007"]
[Site "?"]
[Date "2007.02.11"]
[Round "2"]
[White "Grundner, Alois"]
[Black "Vergeiner, Franz"]
[Result "0-1"]
[ECO "E10"]
[WhiteElo "1931"]
[BlackElo "2138"]
[Annotator ",Lois"]
[PlyCount "60"]
[TimeControl "300"]

{37MB, TreeB33.ctg, LOIS-LXIC8KMRWW} 1. d4 {[%emt 0:00:00]} Nf6 {letzter
Buchzug} 2. Nf3 {[%eval 0,10]} e6 {[%eval 16,10]} 3. c4 {[%eval 3,10]} c5 {
[%eval 22,10]} 4. d5 {[%eval 19,10]} b5 {[%eval 63,10]} ({Fritz 8:} 4... d6 5.
Nc3 Be7 6. Qa4+ Qd7 7. dxe6 fxe6 8. Qxd7+ Bxd7 9. Bf4 e5 10. Bg5 O-O {[%eval
19,10]}) 5. e3 {[%eval 9,10]} ({Fritz 8:} 5. dxe6 fxe6 6. cxb5 d5 7. Nc3 Nbd7
8. e4 d4 9. Na4 Nxe4 10. Bd3 {[%eval 63,10]}) 5... Bb7 {[%eval 25,10]} 6. dxe6
{[%eval 56,10]} fxe6 {[%eval 25,10]} 7. cxb5 {[%eval 56,10]} Be7 {[%eval 38,10]
} 8. Be2 {[%eval 47,10]} O-O {[%eval 22,10]} 9. O-O {[%eval 47,10]} a6 {[%eval
19,10]} 10. Nc3 {[%eval 19,10]} d5 {[%eval 28,10]} 11. b3 {[%eval 41,10]} axb5
{[%eval 16,10]} 12. Nxb5 {[%eval 28,10]} Ne4 {[%eval -3,10]} 13. Bb2 {[%eval
28,10]} Nc6 {[%eval 34,10]} 14. a3 {[%eval 0,10]} ({Fritz 8:} 14. Nd2 Nxd2 15.
Qxd2 Ba6 16. Rfc1 Qb6 17. a4 Bh4 18. f4 {[%eval 34,10]}) 14... Bf6 {[%eval 22,
10]} 15. Qc2 {[%eval 0,10]} Qe7 {[%eval 44,10]} ({Fritz 8:} 15... Ba6 16. Nd2
Bxb2 17. Qxb2 Nxd2 18. Qxd2 Qb6 19. a4 Bxb5 {[%eval 0,10]}) 16. Bd3 {[%eval -3,
10]} ({Fritz 8:} 16. Bxf6 Qxf6 17. Nd2 Nxd2 18. Qxd2 Na5 19. Qc2 Ba6 20. b4
cxb4 {[%eval 44,10]}) 16... Bxb2 {[%eval -25,10]} 17. Qxb2 {[%eval 6,10]} Ng5 {
[%eval 134,10]} ({Fritz 8:} 17... Ba6 18. Rfc1 Rab8 19. Qe2 Qf6 20. a4 Ra8 {
[%eval 6,10]}) 18. Nxg5 {[%eval 166,10]} Qxg5 {[%eval 134,10]} 19. Nc7 {[%eval
87,10]} ({Fritz 8:} 19. f4 Qe7 20. Qc2 e5 21. Bxh7+ Kh8 22. Nc3 Na5 23. b4 Nc4
24. bxc5 {[%eval 134,10]}) 19... Ne5 {[%eval 56,10]} 20. Be2 {[%eval -16,10]} (
{Fritz 8:} 20. Qc2 Nf3+ 21. Kh1 {[%eval 56,10]}) 20... d4 {[%eval -47,10]} 21.
f3 {[%eval -81,10]} ({Fritz 8:} 21. e4 d3 22. Bd1 Bxe4 23. f3 {[%eval -47,10]})
21... Qxe3+ {[%eval -112,10]} 22. Rf2 {[%eval -156,10]} ({Fritz 8:} 22. Kh1 d3
23. Qc3 {[%eval -112,10]}) 22... Ng4 {[%eval -37,10]} ({Fritz 8:} 22... Rac8
23. Nxe6 Rf6 24. f4 Bd5 25. Ba6 Nd3 26. Bxd3 Qxd3 27. f5 {[%eval -156,10]}) 23.
Bc4 {[%eval -6,10]} Nxf2 {[%eval -37,10]} 24. Bxe6+ {[%eval -175,10]} ({Fritz
8:} 24. Qxf2 Rxa3 25. Rxa3 {[%eval -37,10]}) 24... Kh8 {[%eval -206,10]} 25.
Qxf2 {[%eval -175,10]} Rxa3 {[%eval -206,10]} 26. Rxa3 {[%eval -175,10]} Qc1+ {
[%eval -206,10]} 27. Qf1 {[%eval -175,10]} Qxa3 {[%eval -206,10]} 28. Qd3 {
[%eval -531,10]} ({Fritz 8:} 28. Bc4 Qb2 29. Ne6 Ra8 30. Qe2 Qb1+ 31. Qf1 Qf5
32. Qd3 Ra1+ 33. Kf2 Qe5 {[%eval -206,10]}) 28... Qa5 {[%eval -562,10]} 29. Nb5
{[%eval -891,10]} ({Fritz 8:} 29. Bc4 Qxc7 30. Qd2 Ra8 31. Qc1 Qd6 32. Bd3 {
[%eval -562,10]}) 29... Qe1+ {[%eval -922,10]} 30. Qf1 {[%eval -891,10]} Qxe6 {
[%eval -922,10]} 0-1

[Event "LLB"]
[Site "?"]
[Date "2006.11.18"]
[Round "?"]
[White "Kaisersberger, Christian"]
[Black "Grundner, Alois"]
[Result "1/2-1/2"]
[ECO "B01"]
[WhiteElo "1990"]
[BlackElo "1905"]
[Annotator ",Lois"]
[PlyCount "75"]
[TimeControl "300"]

{95MB, LOIS-LXIC8KMRWW} 1. e4 d5 2. exd5 Nf6 3. d4 Nxd5 4. c4 Nb6 5. Nf3 Bg4 6.
Be3 e6 7. Nbd2 Be7 8. Qb3 Bxf3 9. Nxf3 a5 10. a3 a4 11. Qc2 N8d7 12. Rd1 c6 13.
Be2 Nf6 14. O-O O-O 15. Bd3 h6 16. Ne5 Nbd7 17. Qd2 Qe8 ({1.19 Fritz 8:} 17...
Qc7 18. f4 (18. Bf4 {[%emt 0:00:00]} Bd6 {[%eval 19,9] [%emt 0:00:09]}) 18...
c5 19. Kh1 Rfd8 20. Qe1 {[%eval 50,11]}) 18. Bc2 ({0.50 Fritz 8:} 18. Bxh6 {
[%eval 119,10]} gxh6 {[%emt 0:00:00]} 19. Qxh6 {[%eval 153,9] [%emt 0:00:12]}
Rd8 {[%eval 269,8] [%emt 0:00:08]} 20. Rfe1 {[%eval 384,8] [%emt 0:00:06]} Bb4
{[%eval 32754,7] [%emt 0:00:02]} 21. Nxd7 {[%eval 32756,4] [%emt 0:00:00]} Qxd7
{[%eval 32758,4] [%emt 0:00:00]} 22. Qg5+ {[%eval 32758,3] [%emt 0:00:00]} Kh8
{[%eval 32760,3] [%emt 0:00:00]} 23. Qxf6+ {[%eval 32760,3] [%emt 0:00:00]} Kg8
{[%eval 32762,3] [%emt 0:00:00]} 24. Qg5+ {[%eval 32762,3] [%emt 0:00:00]} Kh8
{[%eval 32764,3] [%emt 0:00:00]} 25. Qh6+ {[%eval 32764,2] [%emt 0:00:00]} Kg8
{[%eval 32766,2] [%emt 0:00:00]} 26. Qh7# {[%eval 32766,2] [%emt 0:00:00]})
18... Nh7 19. Qd3 f5 20. f4 Nhf6 21. g4 ({-0.03 Fritz 8:} 21. Qe2 Kh8 22. Bf2
Nxe5 23. Qxe5 Qf7 24. Rde1 Ne4 25. Bxe4 Bf6 26. Qc5 {[%eval 84,11]}) 21... Nxe5
22. dxe5 Nxg4 23. Bb6 Ra6 24. c5 Rxb6 25. cxb6 Bc5+ 26. Kh1 Ne3 27. Rfe1 Nxd1
28. Rxd1 Bxb6 29. Bxa4 Qe7 30. Qd7 Re8 31. Rd3 Kf7 32. Kg2 Rd8 ({0.00 Fritz 8:
} 32... Qxd7 33. Rxd7+ Re7 34. Rd3 Ke8 35. h4 Rd7 36. Rxd7 Kxd7 37. h5 Bd4 38.
b4 Bb2 39. Bb3 {[%eval -88,13]}) 33. Qxe7+ Kxe7 34. Rb3 Rd4 35. Rxb6 Rxa4 36.
Rxb7+ Kf8 37. Rb8+ Kf7 38. Rb7+ 1/2-1/2

[Event "LLB"]
[Site "?"]
[Date "2006.11.04"]
[Round "3"]
[White "Grundner, Alois"]
[Black "Buchebner, Markus"]
[Result "1/2-1/2"]
[ECO "D18"]
[WhiteElo "1905"]
[BlackElo "2031"]
[Annotator ",Lois"]
[PlyCount "53"]
[TimeControl "300"]

{95MB, LOIS-LXIC8KMRWW} 1. d4 d5 2. c4 c6 3. Nc3 Nf6 4. Nf3 dxc4 5. a4 Bf5 6.
e3 e6 7. Bxc4 Bb4 8. O-O Nbd7 9. Qb3 a5 10. Ne2 Be4 11. Nd2 Bxd2 12. Bxd2 O-O
13. f3 Bd5 14. e4 Bxc4 15. Qxc4 Qb6 16. Be3 Qa6 17. Rac1 Qxc4 18. Rxc4 Nb6 19.
Rc2 Nfd7 20. b3 Nc8 21. Rfc1 Ne7 22. Bf4 Ng6 23. Bd6 Rfe8 24. f4 Nf6 25. Ng3 h5
26. e5 Nd5 27. Nxh5 1/2-1/2